fUST/lending_fUST_20240225
["ID","MTS","AMOUNT","RATE_DAILY","PERIOD"]
[315122017,1708859432937,-500.0,0.00019178,2]
[315122018,1708859432946,-500.0,0.00019178,2]
[315122019,1708859432955,-502.29163787,0.00019178,2]
[315122020,1708859432964,-500.0,0.00019178,2]
[315122021,1708859432974,-500.0,0.00019178,2]
[315122022,1708859432983,-500.0,0.00019178,2]
[315122023,1708859432993,-1406.53,0.00019178,2]
[315122024,1708859433002,-1113.93,0.00019178,2]
[315122025,1708859433011,-500.0,0.00019178,2]
[315122026,1708859433020,-500.0,0.00019178,2]
[315122027,1708859433029,-500.0,0.00019178,2]
[315122028,1708859433038,-500.0,0.00019178,2]
[315122029,1708859433047,-500.0,0.00019178,2]
[315122030,1708859433056,-500.0,0.00019178,2]
[315122031,1708859433065,-500.0,0.00019178,2]
[315122032,1708859433075,-500.0,0.00019178,2]
[315122033,1708859433084,-500.57257284,0.00019178,2]
[315122034,1708859433094,-500.0,0.00019178,2]
[315122035,1708859433103,-1000.0,0.00019178,2]
[315122036,1708859433116,-500.0,0.00019178,2]
[315122037,1708859433125,-500.0,0.00019178,2]
[315122038,1708859433135,-500.0,0.00019178,2]
[315122039,1708859433144,-319.09963093,0.00019178,2]
[315122040,1708859433155,-500.0,0.00019178,2]
[315122041,1708859433165,-500.0,0.00019178,2]
[315122042,1708859433175,-500.0,0.00019178,2]
[315122043,1708859433184,-500.0,0.00019178,2]
[315122044,1708859433196,-500.0,0.00019178,2]
[315122045,1708859433205,-500.0,0.00019178,2]
[315122046,1708859433215,-500.0,0.00019178,2]
[315122047,1708859433224,-430.17091287,0.00019178,2]
[315122048,1708859433233,-500.0,0.00019178,2]
[315122049,1708859433243,-500.0,0.00019178,2]
[315122050,1708859433252,-500.0,0.00019178,2]
[315122051,1708859433262,-500.0,0.00019178,2]
[315122052,1708859433271,-500.0,0.00019178,2]
[315122053,1708859433280,-500.57580498,0.00019178,2]
[315122054,1708859433290,-500.0,0.00019178,2]
[315122055,1708859433300,-500.0,0.00019178,2]
[315122056,1708859433308,-264.24562564,0.00019178,2]
[315122088,1708859441468,-1304.02939224,0.00018964,2]
[315122090,1708859441480,-1412.82943665,0.00018964,2]
[315122092,1708859441490,-235.75437436,0.00019178,2]
[315122094,1708859441499,-500.0,0.00019178,2]
[315122096,1708859441509,-500.99779581,0.00019178,2]
[315122098,1708859441518,-500.53133175,0.00019178,2]
[315122100,1708859441527,-500.0,0.00019178,2]
[315122102,1708859441537,-371.29414601,0.00019178,2]
[315122104,1708859441546,-716.56,0.00019178,2]
[315122106,1708859441555,-500.0,0.00019178,2]
[315122108,1708859441564,-500.0,0.00019178,2]
[315122110,1708859441575,-500.0,0.00019178,2]
[315122112,1708859441583,-500.0,0.00019178,2]
[315122114,1708859441593,-500.0,0.00019178,2]
[315122116,1708859441601,-500.0,0.00019178,2]
[315122118,1708859441611,-500.0,0.00019178,2]
[315122120,1708859441621,-500.0,0.00019178,2]
[315122122,1708859441630,-500.0,0.00019178,2]
[315122124,1708859441639,-500.0,0.00019178,2]
[315122126,1708859441648,-160.30624335,0.00019178,2]
[315122128,1708859441657,-500.0,0.00019178,2]
[315122130,1708859441666,-500.0,0.00019178,2]
[315122132,1708859441676,-500.0,0.00019178,2]
[315122134,1708859441686,-500.0,0.00019178,2]
[315122136,1708859441695,-500.0,0.00019178,2]
[315122138,1708859441704,-500.0,0.00019178,2]
[315122140,1708859441713,-500.0,0.00019178,2]
[315122142,1708859441723,-500.0,0.00019178,2]
[315122144,1708859441734,-500.0,0.00019178,2]
[315122146,1708859441743,-500.0,0.00019178,2]
[315122148,1708859441752,-1920.37,0.00019178,2]
[315122150,1708859441762,-500.0,0.00019178,2]
[315122152,1708859441770,-500.0,0.00019178,2]
[315122154,1708859441780,-249.69840039,0.00019178,2]
[315122156,1708859441789,-852.77,0.00019178,2]
[315122157,1708859441798,-500.0,0.00019178,2]
[315122159,1708859441808,-500.0,0.00019178,2]
[315122162,1708859441817,-1859.14,0.00019178,2]
[315122164,1708859441827,-500.0,0.00019178,2]
[315122165,1708859441836,-501.80284884,0.00019178,2]
[315122167,1708859441849,-500.63186668,0.00019178,2]
[315122169,1708859441858,-500.0,0.00019178,2]
[315122172,1708859441868,-500.0,0.00019178,2]
[315122173,1708859441877,-151.0,0.00019178,2]
[315122176,1708859441886,-1347.23,0.00019178,2]
[315122177,1708859441895,-500.0,0.00019178,2]
[315122179,1708859441904,-500.0,0.00019178,2]
[315122181,1708859441915,-500.0,0.00019178,2]
[315122183,1708859441924,-500.0,0.00019178,2]
[315122186,1708859441934,-294.90521333,0.00019178,2]
[315122188,1708859441944,-500.0,0.00019178,2]
[315122190,1708859441953,-931.99,0.00019178,2]
[315122191,1708859441962,-1025.63,0.00019178,2]
[315122194,1708859441973,-297.1373613,0.00019178,2]
[315122196,1708859441982,-500.0,0.00019178,2]
[315122198,1708859441992,-500.0,0.00019178,2]
[315122200,1708859442001,-500.0,0.00019178,2]
[315122201,1708859442010,-319.09963093,0.00019178,2]
[315122203,1708859442019,-500.0,0.00019178,2]
[315122205,1708859442028,-500.0,0.00019178,2]
[315122207,1708859442037,-1384.92,0.00019178,2]
[315122209,1708859442047,-1019.56,0.00019178,2]
[315122210,1708859442056,-495.61212969,0.00019178,2]
[315122212,1708859442065,-500.0,0.00019178,2]
[315122214,1708859442074,-500.0,0.00019178,2]
[315122217,1708859442085,-500.0,0.00019178,2]
[315122219,1708859442095,-500.0,0.00019178,2]
[315122221,1708859442105,-500.0,0.00019178,2]
[315122223,1708859442117,-782.46,0.00019178,2]
[315122225,1708859442126,-500.0,0.00019178,2]
[315122226,1708859442136,-500.0,0.00019178,2]
[315122228,1708859442146,-500.0,0.00019178,2]
[315122231,1708859442156,-1186.3,0.00019178,2]
[315122233,1708859442165,-858.55,0.00019178,2]
[315122235,1708859442176,-500.0,0.00019178,2]
[315122237,1708859442186,-400.32969916,0.00019178,2]
[315122239,1708859442198,-1182.78,0.00019178,2]
[315122241,1708859442207,-500.0,0.00019178,2]
[315122242,1708859442217,-500.0,0.00019178,2]
[315122244,1708859442226,-500.0,0.00019178,2]
[315122245,1708859442234,-500.0,0.00019178,2]
[315122247,1708859442244,-500.0,0.00019178,2]
[315122249,1708859442254,-500.0,0.00019178,2]
[315122264,1708859442387,-831.58905447,0.00019178,2]
[315122314,1708860325083,11521.9448345,0.00017868,2]
[315122315,1708860345538,1497.33211945,0.00017868,2]
[315122316,1708860345573,2319.64549795,0.00017868,2]
[315122326,1708860566316,-154.92253873,0.00018106,2]
[315122327,1708860566335,-3605.84905895,0.00018107,2]
[315122328,1708860566355,-110.54840232,0.00018108,2]
[315122351,1708860632541,-255.3583136,0.00018344,2]
[315122353,1708860632551,-508.45947808,0.000189,2]
[315122355,1708860632562,-161.3294561,0.00019177,2]
[315122377,1708860638457,-338.6705439,0.00019177,2]
[315122378,1708860638466,-500.0,0.00019178,2]
[315122379,1708860638476,-164.92555019,0.00019178,2]
[315122380,1708860638485,-500.0,0.00019178,2]
[315122381,1708860638494,-200.25036787,0.00019178,2]
[315122483,1708860643502,-26.06685113,0.00019178,2]
[315122484,1708860643512,-510.27943543,0.00019178,2]
[315122486,1708860643522,-500.42471749,0.00019178,2]
[315122488,1708860643531,-500.0,0.00019178,2]
[315122490,1708860643540,-501.56254506,0.00019178,2]
[315122491,1708860643551,-500.0,0.00019178,2]
[315122492,1708860643565,-500.0,0.00019178,2]
[315122493,1708860643574,-500.0,0.00019178,2]
[315122494,1708860643583,-500.0,0.00019178,2]
[315122495,1708860643594,-500.0,0.00019178,2]
[315122496,1708860643603,-500.0,0.00019178,2]
[315122497,1708860643612,-500.0,0.00019178,2]
[315122498,1708860643621,-500.0,0.00019178,2]
[315122499,1708860643630,-190.12652069,0.00019178,2]
[315122500,1708860643641,-1067.51,0.00019178,2]
[315122501,1708860643651,-500.0,0.00019178,2]
[315122502,1708860643660,-500.0,0.00019178,2]
[315122503,1708860643670,-500.0,0.00019178,2]
[315122504,1708860643679,-319.09963093,0.00019178,2]
[315122505,1708860643688,-500.0,0.00019178,2]
[315122506,1708860643698,-500.0,0.00019178,2]
[315122507,1708860643708,-500.0,0.00019178,2]
[315122508,1708860643717,-500.0,0.00019178,2]
[315122509,1708860643727,-500.0,0.00019178,2]
[315122510,1708860643736,-500.0,0.00019178,2]
[315122511,1708860643746,-501.50917574,0.00019178,2]
[315122512,1708860643755,-500.0,0.00019178,2]
[315122513,1708860643765,-500.0,0.00019178,2]
[315122514,1708860643775,-500.0,0.00019178,2]
[315122515,1708860643784,-686.7,0.00019178,2]
[315122516,1708860643793,-500.0,0.00019178,2]
[315122517,1708860643803,-500.0,0.00019178,2]
[315122518,1708860643812,-259.27750852,0.00019178,2]
[315122548,1708860646490,-240.72249148,0.00019178,2]
[315122549,1708860646500,-500.0,0.00019178,2]
[315122551,1708860646509,-500.0,0.00019178,2]
[315122553,1708860646519,-500.0,0.00019178,2]
[315122555,1708860646528,-500.0,0.00019178,2]
[315122556,1708860646537,-380.71677429,0.00019178,2]
[315122558,1708860646547,-500.0,0.00019178,2]
[315122559,1708860646559,-500.0,0.00019178,2]
[315122560,1708860646568,-500.0,0.00019178,2]
[315122561,1708860646578,-1347.93,0.00019178,2]
[315122562,1708860646587,-228.67540805,0.00019178,2]
[315122563,1708860646597,-500.0,0.00019178,2]
[315122564,1708860646607,-151.0,0.00019178,2]
[315122565,1708860646616,-860.45938082,0.00019178,2]
[315122566,1708860646625,-501.06451591,0.00019178,2]
[315122567,1708860646635,-373.72715939,0.00019178,2]
[315122568,1708860646645,-454.64032392,0.00019178,2]
[315122569,1708860646654,-500.0,0.00019178,2]
[315122570,1708860646663,-500.0,0.00019178,2]
[315122571,1708860646673,-500.0,0.00019178,2]
[315122572,1708860646682,-500.0,0.00019178,2]
[315122573,1708860646691,-500.0,0.00019178,2]
[315122574,1708860646700,-500.0,0.00019178,2]
[315122575,1708860646709,-319.09963093,0.00019178,2]
[315122576,1708860646719,-749.86,0.00019178,2]
[315122577,1708860646728,-500.0,0.00019178,2]
[315122578,1708860646738,-500.0,0.00019178,2]
[315122579,1708860646747,-500.0,0.00019178,2]
[315122580,1708860646757,-500.0,0.00019178,2]
[315122581,1708860646766,-500.56043297,0.00019178,2]
[315122582,1708860646775,-500.0,0.00019178,2]
[315122583,1708860646784,-500.0,0.00019178,2]
[315122584,1708860646793,-500.0,0.00019178,2]
[315122585,1708860646802,-500.0,0.00019178,2]
[315122586,1708860646811,-500.66579951,0.00019178,2]
[315122587,1708860646820,-434.08446328,0.00019178,2]
[315122588,1708860646832,-65.91553672,0.00019178,2]
[315122589,1708860646841,-500.0,0.00019178,2]
[315122590,1708860646851,-41.08446328,0.00019178,2]
[315122603,1708861370509,9318.5672024,0.00017932,2]
[315122607,1708861630098,-182.9533591,0.00018191,2]
[315122608,1708861630119,-1878.64735971,0.00018472,2]
[315122609,1708861630140,-638.2435629,0.00018473,2]
[315122610,1708861630161,-539.95886754,0.000189,2]
[315122611,1708861630182,-500.0,0.00019177,2]
[315122612,1708861630203,-500.0,0.00019178,2]
[315122613,1708861630225,-500.0,0.00019178,2]
[315122614,1708861630246,-500.0,0.00019178,2]
[315122615,1708861630277,-319.09963093,0.00019178,2]
[315122616,1708861630301,-350.71523896,0.00019178,2]
[315122645,1708861838680,-6892.34560431,0.00019177,2]
[315122654,1708861841820,-872.67904065,0.00019177,2]
[315122655,1708861841832,-1333.67007164,0.00019177,2]
[315122700,1708861843628,-293.26520376,0.00019177,2]
[315122703,1708861843640,-5176.90325987,0.00019177,2]
[315122709,1708861843690,-3834.5939075,0.00019177,2]
[315122710,1708861843699,-1878.64735971,0.00019177,2]
[315122712,1708861843709,-500.0,0.00019177,2]
[315122714,1708861843717,-500.0,0.00019178,2]
[315122716,1708861843727,-500.0,0.00019178,2]
[315122718,1708861843736,-500.0,0.00019178,2]
[315122720,1708861843746,-319.09963093,0.00019178,2]
[315122722,1708861843755,-498.19728098,0.00019178,2]
[315122724,1708861843764,-500.0,0.00019178,2]
[315122726,1708861843773,-327.97724801,0.00019178,2]
[315122727,1708861843782,-435.5988975,0.00019178,2]
[315123018,1708861846789,-64.4011025,0.00019178,2]
[315123019,1708861846799,-270.84778695,0.00019178,2]
[315123020,1708861846808,-500.0,0.00019178,2]
[315123021,1708861846817,-500.0,0.00019178,2]
[315123022,1708861846827,-500.0,0.00019178,2]
[315123023,1708861846835,-500.0,0.00019178,2]
[315123024,1708861846845,-500.0,0.00019178,2]
[315123026,1708861846855,-319.09963093,0.00019178,2]
[315123028,1708861846864,-718.62,0.00019178,2]
[315123030,1708861846873,-188.14947214,0.00019178,2]
[315123032,1708861846885,-311.85052786,0.00019178,2]
[315123034,1708861846895,-500.0,0.00019178,2]
[315123036,1708861846905,-500.0,0.00019178,2]
[315123038,1708861846916,-500.0,0.00019178,2]
[315123040,1708861846926,-500.0,0.00019178,2]
[315123042,1708861846935,-301.56031395,0.00019178,2]
[315123094,1708862450537,3556.89,0.00018,2]
[315123096,1708862835593,182.953358,0.00017785,2]
[315123097,1708862951534,1017.14669141,0.0002,14]
[315123098,1708863015371,9659.1289451,0.00017897,2]
[315123149,1708863037813,-1878.64735971,0.0001813,2]
[315123150,1708863037822,-670.39216122,0.00018131,2]
[315123152,1708863037833,-776.716373,0.00018131,2]
[315123158,1708863038698,-942.54550315,0.00018131,2]
[315123159,1708863038708,-360.70292988,0.00018132,2]
[315123165,1708863040978,-1230.44847384,0.00018132,2]
[315123166,1708863040988,-15336.21423977,0.00018152,2]
[315123167,1708863040997,-493.96316646,0.000189,2]
[315123168,1708863041006,-161.70669459,0.00019078,2]
[315123169,1708863041015,-271.12998174,0.00019177,2]
[315123170,1708863041024,-500.0,0.00019178,2]
[315123171,1708863041033,-500.0,0.00019178,2]
[315123172,1708863041042,-500.0,0.00019178,2]
[315123173,1708863041051,-319.09963093,0.00019178,2]
[315123174,1708863041061,-500.0,0.00019178,2]
[315123175,1708863041070,-500.0,0.00019178,2]
[315123176,1708863041080,-500.0,0.00019178,2]
[315123177,1708863041089,-319.09963093,0.00019178,2]
[315123178,1708863041100,-500.0,0.00019178,2]
[315123179,1708863041108,-500.0,0.00019178,2]
[315123180,1708863041118,-500.0,0.00019178,2]
[315123181,1708863041127,-500.0,0.00019178,2]
[315123182,1708863041137,-500.0,0.00019178,2]
[315123183,1708863041147,-400.0,0.00019178,2]
[315123184,1708863041157,-500.0,0.00019178,2]
[315123185,1708863041167,-500.0,0.00019178,2]
[315123186,1708863041176,-500.0,0.00019178,2]
[315123187,1708863041186,-500.0,0.00019178,2]
[315123188,1708863041194,-500.0,0.00019178,2]
[315123189,1708863041204,-350.79093063,0.00019178,2]
[315123190,1708863041214,-500.0,0.00019178,2]
[315123191,1708863041224,-186.29117851,0.00019178,2]
[315123192,1708863041233,-186.29117851,0.00019178,2]
[315123193,1708863041242,-215.31563882,0.00019178,2]
[315123194,1708863041253,-500.0,0.00019178,2]
[315123195,1708863041262,-500.0,0.00019178,2]
[315123196,1708863041271,-500.0,0.00019178,2]
[315123197,1708863041281,-500.0,0.00019178,2]
[315123198,1708863041291,-500.0,0.00019178,2]
[315123199,1708863041302,-319.09963093,0.00019178,2]
[315123200,1708863041311,-500.0,0.00019178,2]
[315123201,1708863041320,-500.0,0.00019178,2]
[315123202,1708863041329,-615.70528262,0.00019178,2]
[315123203,1708863041339,-500.0,0.00019178,2]
[315123204,1708863041348,-501.70461247,0.00019178,2]
[315123205,1708863041357,-500.0,0.00019178,2]
[315123206,1708863041366,-500.0,0.00019178,2]
[315123207,1708863041378,-500.0,0.00019178,2]
[315123208,1708863041387,-500.0,0.00019178,2]
[315123209,1708863041397,-500.0,0.00019178,2]
[315123210,1708863041405,-500.0,0.00019178,2]
[315123211,1708863041414,-500.92552453,0.00019178,2]
[315123212,1708863041423,-629.55043623,0.00019178,2]
[315123213,1708863041432,-500.0,0.00019178,2]
[315123214,1708863041441,-500.0,0.00019178,2]
[315123215,1708863041450,-500.0,0.00019178,2]
[315123216,1708863041459,-319.09963093,0.00019178,2]
[315123217,1708863041469,-500.0,0.00019178,2]
[315123218,1708863041479,-500.12762559,0.00019178,2]
[315123219,1708863041489,-500.0,0.00019178,2]
[315123220,1708863041498,-500.0,0.00019178,2]
[315123221,1708863041508,-500.0,0.00019178,2]
[315123222,1708863041517,-369.21845984,0.00019178,2]
[315123223,1708863041527,-500.0,0.00019178,2]
[315123224,1708863041537,-500.0,0.00019178,2]
[315123225,1708863041546,-500.0,0.00019178,2]
[315123226,1708863041555,-500.0,0.00019178,2]
[315123227,1708863041565,-500.0,0.00019178,2]
[315123228,1708863041574,-369.32155935,0.00019178,2]
[315123229,1708863041583,-500.0,0.00019178,2]
[315123230,1708863041592,-500.0,0.00019178,2]
[315123231,1708863041601,-500.61270406,0.00019178,2]
[315123232,1708863041611,-500.0,0.00019178,2]
[315123233,1708863041620,-500.0,0.00019178,2]
[315123234,1708863041629,-500.0,0.00019178,2]
[315123235,1708863041638,-500.0,0.00019178,2]
[315123236,1708863041647,-233.95,0.00019178,2]
[315123237,1708863041656,-699.99,0.00019178,2]
[315123238,1708863041665,-500.0,0.00019178,2]
[315123239,1708863041674,-451.30512983,0.00019178,2]
[315123240,1708863041684,-500.0,0.00019178,2]
[315123241,1708863041693,-500.0,0.00019178,2]
[315123242,1708863041702,-501.10864592,0.00019178,2]
[315123243,1708863041711,-500.0,0.00019178,2]
[315123244,1708863041719,-500.0,0.00019178,2]
[315123245,1708863041728,-500.0,0.00019178,2]
[315123246,1708863041738,-500.0,0.00019178,2]
[315123247,1708863041747,-557.07689794,0.00019178,2]
[315123248,1708863041756,-500.0,0.00019178,2]
[315123249,1708863041765,-500.0,0.00019178,2]
[315123250,1708863041774,-500.0,0.00019178,2]
[315123251,1708863041783,-500.0,0.00019178,2]
[315123252,1708863041792,-500.0,0.00019178,2]
[315123253,1708863041801,-500.0,0.00019178,2]
[315123254,1708863041810,-500.0,0.00019178,2]
[315123255,1708863041819,-500.0,0.00019178,2]
[315123256,1708863041828,-500.0,0.00019178,2]
[315123257,1708863041837,-500.0,0.00019178,2]
[315123258,1708863041848,-500.0,0.00019178,2]
[315123259,1708863041862,-504.38560451,0.00019178,2]
[315123260,1708863041875,-256.99394529,0.00019178,2]
[315123261,1708863041887,-1291.76,0.00019178,2]
[315123262,1708863041900,-500.0,0.00019178,2]
[315123263,1708863041912,-500.0,0.00019178,2]
[315123264,1708863041924,-500.0,0.00019178,2]
[315123265,1708863041934,-500.0,0.00019178,2]
[315123266,1708863041945,-500.0,0.00019178,2]
[315123267,1708863041956,-319.09963093,0.00019178,2]
[315123268,1708863041968,-500.0,0.00019178,2]
[315123269,1708863041980,-500.0,0.00019178,2]
[315123270,1708863041991,-500.76474039,0.00019178,2]
[315123271,1708863042003,-1104.0,0.00019178,2]
[315123272,1708863042015,-500.0,0.00019178,2]
[315123273,1708863042027,-1000.0,0.00019178,2]
[315123274,1708863042038,-500.0,0.00019178,2]
[315123275,1708863042050,-500.0,0.00019178,2]
[315123276,1708863042061,-500.0,0.00019178,2]
[315123277,1708863042070,-500.0,0.00019178,2]
[315123278,1708863042080,-500.0,0.00019178,2]
[315123279,1708863042092,-629.179444,0.00019178,2]
[315123280,1708863042103,-629.179444,0.00019178,2]
[315123281,1708863042114,-629.179444,0.00019178,2]
[315123282,1708863042125,-629.179444,0.00019178,2]
[315123283,1708863042136,-629.179444,0.00019178,2]
[315123284,1708863042147,-629.179444,0.00019178,2]
[315123285,1708863042158,-629.179444,0.00019178,2]
[315123286,1708863042170,-629.179444,0.00019178,2]
[315123287,1708863042183,-629.179444,0.00019178,2]
[315123288,1708863042194,-723.5,0.00019178,2]
[315123289,1708863042207,-629.179444,0.00019178,2]
[315123290,1708863042217,-629.179444,0.00019178,2]
[315123291,1708863042227,-500.0,0.00019178,2]
[315123292,1708863042240,-629.179444,0.00019178,2]
[315123293,1708863042252,-629.179444,0.00019178,2]
[315123294,1708863042263,-629.179444,0.00019178,2]
[315123295,1708863042275,-629.179444,0.00019178,2]
[315123296,1708863042287,-629.179444,0.00019178,2]
[315123297,1708863042302,-629.179444,0.00019178,2]
[315123298,1708863042314,-629.179444,0.00019178,2]
[315123299,1708863042325,-629.179444,0.00019178,2]
[315123300,1708863042339,-629.17943835,0.00019178,2]
[315123301,1708863042351,-500.0,0.00019178,2]
[315123302,1708863042362,-502.05419697,0.00019178,2]
[315123303,1708863042373,-500.0,0.00019178,2]
[315123304,1708863042385,-500.0,0.00019178,2]
[315123305,1708863042397,-500.0,0.00019178,2]
[315123306,1708863042410,-500.0,0.00019178,2]
[315123307,1708863042422,-500.0,0.00019178,2]
[315123308,1708863042434,-500.0,0.00019178,2]
[315123309,1708863042445,-500.0,0.00019178,2]
[315123310,1708863042458,-500.0,0.00019178,2]
[315123312,1708863042470,-500.0,0.00019178,2]
[315123313,1708863042480,-500.0,0.00019178,2]
[315123314,1708863042490,-500.0,0.00019178,2]
[315123315,1708863042499,-500.0,0.00019178,2]
[315123316,1708863042509,-500.0,0.00019178,2]
[315123318,1708863042520,-500.0,0.00019178,2]
[315123320,1708863042531,-728.060048,0.00019178,2]
[315123321,1708863042542,-728.060048,0.00019178,2]
[315123322,1708863042553,-728.060048,0.00019178,2]
[315123323,1708863042563,-728.060048,0.00019178,2]
[315123324,1708863042574,-728.060048,0.00019178,2]
[315123325,1708863042585,-728.060048,0.00019178,2]
[315123326,1708863042596,-500.0,0.00019178,2]
[315123327,1708863042606,-728.060048,0.00019178,2]
[315123328,1708863042616,-728.060048,0.00019178,2]
[315123329,1708863042626,-305.08549894,0.00019178,2]
[315123330,1708863042636,-728.060048,0.00019178,2]
[315123331,1708863042647,-728.060048,0.00019178,2]
[315123332,1708863042657,-728.060048,0.00019178,2]
[315123333,1708863042668,-728.060048,0.00019178,2]
[315123334,1708863042678,-412.52238864,0.00019178,2]
[315124083,1708863947239,8067.7947243,0.00018033,2]
[315124194,1708864232057,-1878.64735971,0.00018204,2]
[315124195,1708864232066,-1036.28744429,0.00018205,2]
[315124196,1708864232075,-3000.0,0.0001821,2]
[315124197,1708864232112,-621.87990762,0.00018426,2]
[315124198,1708864232121,-418.63583637,0.000189,2]
[315124200,1708864232130,-2482.5582208,0.00019,2]
[315124201,1708864232139,-161.70669459,0.00019078,2]
[315124203,1708864232147,-32159.07726969,0.00019152,2]
[315124205,1708864232156,-500.0,0.00019178,2]
[315124207,1708864232165,-500.0,0.00019178,2]
[315124209,1708864232174,-500.0,0.00019178,2]
[315124210,1708864232182,-319.09963093,0.00019178,2]
[315124211,1708864232191,-500.0,0.00019178,2]
[315124212,1708864232201,-500.0,0.00019178,2]
[315124213,1708864232210,-500.0,0.00019178,2]
[315124214,1708864232219,-342.92124206,0.00019178,2]
[315124215,1708864232227,-500.0,0.00019178,2]
[315124216,1708864232236,-500.0,0.00019178,2]
[315124217,1708864232245,-579.2703639,0.00019178,2]
[315124218,1708864232254,-500.0,0.00019178,2]
[315124219,1708864232263,-500.0,0.00019178,2]
[315124220,1708864232273,-500.0,0.00019178,2]
[315124221,1708864232282,-500.0,0.00019178,2]
[315124222,1708864232292,-340.24388928,0.00019178,2]
[315124223,1708864232302,-500.0,0.00019178,2]
[315124224,1708864232311,-500.0,0.00019178,2]
[315124225,1708864232321,-500.0,0.00019178,2]
[315124226,1708864232330,-500.0,0.00019178,2]
[315124227,1708864232465,-500.0,0.00019178,2]
[315124228,1708864232475,-501.23732277,0.00019178,2]
[315124229,1708864232485,-1213.19,0.00019178,2]
[315124230,1708864232494,-500.0,0.00019178,2]
[315124231,1708864232503,-500.0,0.00019178,2]
[315124232,1708864232512,-761.6,0.00019178,2]
[315124233,1708864232521,-500.0,0.00019178,2]
[315124234,1708864232529,-500.0,0.00019178,2]
[315124235,1708864232538,-500.0,0.00019178,2]
[315124236,1708864232547,-319.09963093,0.00019178,2]
[315124237,1708864232557,-500.0,0.00019178,2]
[315124238,1708864232566,-500.0,0.00019178,2]
[315124239,1708864232575,-500.0,0.00019178,2]
[315124240,1708864232584,-500.0,0.00019178,2]
[315124241,1708864232593,-500.0,0.00019178,2]
[315124242,1708864232601,-500.0,0.00019178,2]
[315124243,1708864232610,-500.0,0.00019178,2]
[315124244,1708864232619,-297.93821724,0.00019178,2]
[315124245,1708864232628,-500.0,0.00019178,2]
[315124246,1708864232637,-500.0,0.00019178,2]
[315124247,1708864232646,-500.0,0.00019178,2]
[315124248,1708864232655,-500.0,0.00019178,2]
[315124249,1708864232667,-500.0,0.00019178,2]
[315124250,1708864232676,-575.54006568,0.00019178,2]
[315124251,1708864232685,-500.0,0.00019178,2]
[315124252,1708864232694,-500.0,0.00019178,2]
[315124253,1708864232703,-500.0,0.00019178,2]
[315124254,1708864232712,-500.0,0.00019178,2]
[315124255,1708864232721,-500.0,0.00019178,2]
[315124256,1708864232730,-636.90447411,0.00019178,2]
[315124257,1708864232741,-500.0,0.00019178,2]
[315124258,1708864232750,-500.0,0.00019178,2]
[315124259,1708864232759,-500.0,0.00019178,2]
[315124260,1708864232768,-500.0,0.00019178,2]
[315124261,1708864232777,-500.0,0.00019178,2]
[315124262,1708864232786,-500.0,0.00019178,2]
[315124263,1708864232795,-516.11424293,0.00019178,2]
[315124264,1708864232804,-500.0,0.00019178,2]
[315124265,1708864232813,-500.0,0.00019178,2]
[315124266,1708864232822,-151.0,0.00019178,2]
[315124267,1708864232832,-500.0,0.00019178,2]
[315124268,1708864232841,-500.0,0.00019178,2]